[Event "*** MasterClass Titled Tuesday Blitz"]
[Site "Chess.com"]
[Date "2017.12.12"]
[Round "8"]
[White "ENEASZ"]
[Black "amaidel"]
[Result "0-1"]
[WhiteElo "2416"]
[BlackElo "2492"]
[TimeControl "180+2"]
[EndTime "14:51:47 PST"]
[Termination "amaidel won by resignation"]

1. e4 {[%clk 0:03:01.9]} 1... e5 {[%clk 0:03:00.3]} 2. Nf3 {[%clk 0:03:02.5]}
2... Nc6 {[%clk 0:03:01.3]} 3. Bc4 {[%clk 0:03:04]} 3... Bc5 {[%clk 0:03:01.5]}
4. c3 {[%clk 0:03:05.4]} 4... Nf6 {[%clk 0:03:01.9]} 5. d4 {[%clk 0:03:06.6]}
5... exd4 {[%clk 0:03:02.5]} 6. O-O {[%clk 0:03:08.2]} 6... Nxe4 {[%clk
0:02:47.2]} 7. cxd4 {[%clk 0:03:08.4]} 7... d5 {[%clk 0:02:47.5]} 8. dxc5 {[%clk
0:03:09.5]} 8... dxc4 {[%clk 0:02:47.9]} 9. Qxd8+ {[%clk 0:03:11.4]} 9... Kxd8
{[%clk 0:02:47.1]} 10. Ng5 {[%clk 0:03:12.4]} 10... Nxg5 {[%clk 0:02:46.7]} 11.
Rd1+ {[%clk 0:03:13.6]} 11... Ke8 {[%clk 0:02:44.8]} 12. Bxg5 {[%clk 0:03:15.5]}
12... f6 {[%clk 0:02:44.7]} 13. Bf4 {[%clk 0:03:16.4]} 13... Be6 {[%clk
0:02:36.1]} 14. Bxc7 {[%clk 0:03:13.3]} 14... Kf7 {[%clk 0:02:36.6]} 15. Nc3
{[%clk 0:03:12.6]} 15... Rac8 {[%clk 0:02:35.6]} 16. Nb5 {[%clk 0:03:04.4]}
16... Kg6 {[%clk 0:02:29.5]} 17. Bg3 {[%clk 0:02:59.8]} 17... Rcd8 {[%clk
0:02:29.3]} 18. Rd6 {[%clk 0:02:51.8]} 18... Kf7 {[%clk 0:02:21.3]} 19. Re1
{[%clk 0:02:45.9]} 19... Rde8 {[%clk 0:01:32.2]} 20. Rd2 {[%clk 0:02:23.1]}
20... Kg6 {[%clk 0:01:09.4]} 21. Nc7 {[%clk 0:02:19.3]} 21... Bf7 {[%clk
0:01:04.5]} 22. Nxe8 {[%clk 0:02:19.6]} 22... Bxe8 {[%clk 0:01:05.2]} 23. Rd4
{[%clk 0:02:07.8]} 23... Nxd4 {[%clk 0:00:57.1]} 24. Re4 {[%clk 0:02:00.5]}
24... Nf5 {[%clk 0:00:52.8]} 25. Rg4+ {[%clk 0:01:42.8]} 25... Kf7 {[%clk
0:00:52.9]} 26. Bb8 {[%clk 0:01:43.8]} 26... a6 {[%clk 0:00:48.6]} 27. Bc7
{[%clk 0:01:40.5]} 27... Bb5 {[%clk 0:00:47.8]} 28. h3 {[%clk 0:01:34.4]} 28...
Re8 {[%clk 0:00:47.1]} 29. Rf4 {[%clk 0:01:35.6]} 29... Ne7 {[%clk 0:00:46.9]}
30. Bd6 {[%clk 0:01:35.9]} 30... Nc8 {[%clk 0:00:45.3]} 31. Bc7 {[%clk
0:01:36.2]} 31... Re7 {[%clk 0:00:46.1]} 32. Bd8 {[%clk 0:01:36.3]} 32... Rd7
{[%clk 0:00:46.7]} 33. Ba5 {[%clk 0:01:37.3]} 33... Ne7 {[%clk 0:00:47.5]} 34.
g4 {[%clk 0:01:36.2]} 34... Rd5 {[%clk 0:00:48]} 35. Re4 {[%clk 0:01:35]} 35...
Rxc5 {[%clk 0:00:43.6]} 36. f4 {[%clk 0:01:34.5]} 36... Rd5 {[%clk 0:00:43.4]}
37. f5 {[%clk 0:01:32.8]} 37... Rd7 {[%clk 0:00:43.8]} 38. Kf2 {[%clk
0:01:29.8]} 38... Nc6 {[%clk 0:00:44.4]} 39. Bc3 {[%clk 0:01:30.8]} 39... Re7
{[%clk 0:00:44.5]} 40. Rf4 {[%clk 0:01:32.2]} 40... Ne5 {[%clk 0:00:45.1]} 41.
Kg3 {[%clk 0:01:33.5]} 41... Nd3 {[%clk 0:00:45.3]} 42. Rd4 {[%clk 0:01:33.4]}
42... Rd7 {[%clk 0:00:45.8]} 43. Re4 {[%clk 0:01:34.3]} 43... Nc5 {[%clk
0:00:44.9]} 44. Re2 {[%clk 0:01:32]} 44... Bc6 {[%clk 0:00:44.8]} 45. h4 {[%clk
0:01:32.1]} 45... Ne4+ {[%clk 0:00:43.5]} 46. Kf4 {[%clk 0:01:31.7]} 46... Nxc3
{[%clk 0:00:44]} 47. bxc3 {[%clk 0:01:33.6]} 47... Rd3 {[%clk 0:00:44.1]} 48. g5
{[%clk 0:01:34.4]} 48... Rxc3 {[%clk 0:00:43.6]} 49. h5 {[%clk 0:01:35.3]} 49...
fxg5+ {[%clk 0:00:44]} 50. Kxg5 {[%clk 0:01:36.7]} 50... Rg3+ {[%clk 0:00:44.2]}
51. Kf4 {[%clk 0:01:37.9]} 51... Rf3+ {[%clk 0:00:44.2]} 52. Kg5 {[%clk
0:01:39.3]} 52... h6+ {[%clk 0:00:44.8]} 53. Kg4 {[%clk 0:01:40.3]} 53... Rf1
{[%clk 0:00:45.7]} 54. Re6 {[%clk 0:01:40.9]} 54... Bd7 {[%clk 0:00:44.3]} 55.
Re5 {[%clk 0:01:41.5]} 55... Rxf5 {[%clk 0:00:43.6]} 0-1

[Event "*** MasterClass Titled Tuesday Blitz"]
[Site "Chess.com"]
[Date "2017.12.12"]
[Round "8"]
[White "chito89"]
[Black "MITerryble"]
[Result "0-1"]
[WhiteElo "2589"]
[BlackElo "2677"]
[TimeControl "180+2"]
[EndTime "14:51:48 PST"]
[Termination "MITerryble won on time"]

1. d4 {[%clk 0:02:57.2]} 1... e6 {[%clk 0:03:00.8]} 2. c4 {[%clk 0:02:56.4]}
2... Bb4+ {[%clk 0:03:01]} 3. Bd2 {[%clk 0:02:56]} 3... Qe7 {[%clk 0:03:02]} 4.
Nf3 {[%clk 0:02:56.2]} 4... Nf6 {[%clk 0:03:02.9]} 5. g3 {[%clk 0:02:54.2]} 5...
Nc6 {[%clk 0:03:04]} 6. Nc3 {[%clk 0:02:54.3]} 6... O-O {[%clk 0:03:04.3]} 7.
Bg2 {[%clk 0:02:54.2]} 7... d6 {[%clk 0:03:05.4]} 8. Rc1 {[%clk 0:02:49.3]} 8...
Bxc3 {[%clk 0:03:03.2]} 9. Bxc3 {[%clk 0:02:49.5]} 9... e5 {[%clk 0:03:04]} 10.
d5 {[%clk 0:02:46.6]} 10... Nb8 {[%clk 0:03:05]} 11. c5 {[%clk 0:02:28.2]} 11...
Na6 {[%clk 0:02:56.9]} 12. cxd6 {[%clk 0:02:26.9]} 12... cxd6 {[%clk 0:02:56.7]}
13. Nd2 {[%clk 0:02:26.3]} 13... Bd7 {[%clk 0:02:49]} 14. O-O {[%clk 0:02:25.6]}
14... Rac8 {[%clk 0:02:47.1]} 15. Qb3 {[%clk 0:02:22.9]} 15... Rc7 {[%clk
0:02:30.3]} 16. Nc4 {[%clk 0:01:57.7]} 16... Nc5 {[%clk 0:01:11.8]} 17. Qa3
{[%clk 0:01:57.1]} 17... b5 {[%clk 0:01:11.9]} 18. Nxe5 {[%clk 0:01:17.5]} 18...
dxe5 {[%clk 0:01:11.3]} 19. Ba5 {[%clk 0:01:17.7]} 19... b4 {[%clk 0:00:57]} 20.
Qe3 {[%clk 0:01:15.7]} 20... Ng4 {[%clk 0:00:54.7]} 21. Qd2 {[%clk 0:01:13.8]}
21... Rcc8 {[%clk 0:00:35.6]} 22. Bxb4 {[%clk 0:01:14.7]} 22... Qd6 {[%clk
0:00:27.4]} 23. Rc4 {[%clk 0:01:04.5]} 23... Qb6 {[%clk 0:00:26.1]} 24. Rfc1
{[%clk 0:01:01.8]} 24... Ne4 {[%clk 0:00:17.7]} 25. Rxe4 {[%clk 0:00:57]} 25...
Nxf2 {[%clk 0:00:18.6]} 26. Kf1 {[%clk 0:00:12.5]} 26... Nxe4 {[%clk 0:00:17.1]}
27. Bxe4 {[%clk 0:00:11.8]} 27... Rxc1+ {[%clk 0:00:17.6]} 0-1

[Event "*** MasterClass Titled Tuesday Blitz"]
[Site "Chess.com"]
[Date "2017.12.12"]
[Round "8"]
[White "Yaacovn"]
[Black "matiss90"]
[Result "1-0"]
[WhiteElo "2639"]
[BlackElo "2340"]
[TimeControl "180+2"]
[EndTime "14:51:55 PST"]
[Termination "Yaacovn won by resignation"]

1. d4 {[%clk 0:02:59]} 1... Nf6 {[%clk 0:03:00]} 2. Nf3 {[%clk 0:03:00.5]} 2...
g6 {[%clk 0:03:00.4]} 3. e3 {[%clk 0:03:01.8]} 3... Bg7 {[%clk 0:03:01.3]} 4.
Be2 {[%clk 0:03:03.5]} 4... O-O {[%clk 0:03:02.3]} 5. O-O {[%clk 0:03:05.4]}
5... d6 {[%clk 0:03:03.7]} 6. b3 {[%clk 0:03:07.3]} 6... c5 {[%clk 0:03:03.7]}
7. Bb2 {[%clk 0:03:09.2]} 7... Ne4 {[%clk 0:03:04.6]} 8. Qc1 {[%clk 0:03:10.2]}
8... cxd4 {[%clk 0:03:03.9]} 9. Bxd4 {[%clk 0:03:12.1]} 9... e5 {[%clk
0:03:04.2]} 10. Bb2 {[%clk 0:03:13]} 10... d5 {[%clk 0:03:01.5]} 11. Rd1 {[%clk
0:03:13.7]} 11... Nc6 {[%clk 0:03:00.8]} 12. c4 {[%clk 0:03:13.3]} 12... d4
{[%clk 0:03:01.7]} 13. Nbd2 {[%clk 0:03:09.5]} 13... Nxd2 {[%clk 0:02:18.5]} 14.
Qxd2 {[%clk 0:03:11.4]} 14... Qe7 {[%clk 0:01:47.6]} 15. exd4 {[%clk 0:02:59.1]}
15... exd4 {[%clk 0:01:48.2]} 16. Re1 {[%clk 0:02:47.1]} 16... Be6 {[%clk
0:01:30.6]} 17. Bf1 {[%clk 0:02:41.3]} 17... h6 {[%clk 0:01:24.6]} 18. g3 {[%clk
0:02:23.5]} 18... Rad8 {[%clk 0:01:24.1]} 19. Bh3 {[%clk 0:02:23.6]} 19... Bxh3
{[%clk 0:01:17.8]} 20. Rxe7 {[%clk 0:02:24]} 20... Nxe7 {[%clk 0:01:18.5]} 21.
Kh1 {[%clk 0:01:42.9]} 21... Nc6 {[%clk 0:01:15.5]} 22. Ng1 {[%clk 0:01:41]}
22... Bf5 {[%clk 0:01:15.9]} 23. Kg2 {[%clk 0:01:27.6]} 23... Rfe8 {[%clk
0:01:16.7]} 24. f3 {[%clk 0:01:25]} 24... Re3 {[%clk 0:01:10.4]} 25. Re1 {[%clk
0:01:14]} 25... Rxe1 {[%clk 0:01:03.8]} 26. Qxe1 {[%clk 0:01:14.9]} 26... d3
{[%clk 0:01:04.9]} 27. Bc1 {[%clk 0:01:06]} 27... g5 {[%clk 0:00:50.7]} 28. g4
{[%clk 0:01:01.9]} 28... Bg6 {[%clk 0:00:50.6]} 29. Nh3 {[%clk 0:00:59.8]} 29...
Nd4 {[%clk 0:00:27.7]} 30. f4 {[%clk 0:00:55.6]} 30... gxf4 {[%clk 0:00:19.6]}
31. Nxf4 {[%clk 0:00:56.2]} 31... Bh7 {[%clk 0:00:20.6]} 32. Nh5 {[%clk
0:00:53.3]} 32... Bh8 {[%clk 0:00:19.9]} 33. Bxh6 {[%clk 0:00:52.9]} 33... Ne2
{[%clk 0:00:16.2]} 34. Qh4 {[%clk 0:00:48.4]} 34... Be4+ {[%clk 0:00:15.2]} 35.
Kf1 {[%clk 0:00:45.6]} 35... Rd7 {[%clk 0:00:13.5]} 36. Nf6+ {[%clk 0:00:46.3]}
36... Bxf6 {[%clk 0:00:09.7]} 37. Qxf6 {[%clk 0:00:48.2]} 37... Ng3+ {[%clk
0:00:02.5]} 38. hxg3 {[%clk 0:00:48.2]} 1-0

[Event "*** MasterClass Titled Tuesday Blitz"]
[Site "Chess.com"]
[Date "2017.12.12"]
[Round "8"]
[White "AndreyOstrovskiy"]
[Black "FearNoEvil12"]
[Result "1-0"]
[WhiteElo "2479"]
[BlackElo "2051"]
[TimeControl "180+2"]
[EndTime "14:52:05 PST"]
[Termination "AndreyOstrovskiy won by resignation"]

1. e4 {[%clk 0:03:01.9]} 1... a6 {[%clk 0:02:59.7]} 2. d4 {[%clk 0:02:59.9]}
2... b5 {[%clk 0:03:01]} 3. Be3 {[%clk 0:02:52.8]} 3... Bb7 {[%clk 0:03:02]} 4.
f3 {[%clk 0:02:53.9]} 4... e6 {[%clk 0:03:01.7]} 5. Bd3 {[%clk 0:02:52.9]} 5...
Nf6 {[%clk 0:03:02.9]} 6. Ne2 {[%clk 0:02:53.5]} 6... d6 {[%clk 0:03:04]} 7. O-O
{[%clk 0:02:53.9]} 7... Nbd7 {[%clk 0:03:05.5]} 8. c3 {[%clk 0:02:52.9]} 8...
Rg8 {[%clk 0:03:05.3]} 9. a4 {[%clk 0:02:49.6]} 9... bxa4 {[%clk 0:03:04.9]} 10.
Qxa4 {[%clk 0:02:48.5]} 10... g5 {[%clk 0:03:06.1]} 11. Nd2 {[%clk 0:02:44.2]}
11... g4 {[%clk 0:03:06]} 12. f4 {[%clk 0:02:42.5]} 12... h5 {[%clk 0:03:05.8]}
13. f5 {[%clk 0:02:15.1]} 13... e5 {[%clk 0:03:02.7]} 14. d5 {[%clk 0:02:03.2]}
14... Be7 {[%clk 0:02:58.8]} 15. Nc4 {[%clk 0:01:57]} 15... Bxd5 {[%clk
0:02:41.9]} 16. exd5 {[%clk 0:01:53.7]} 16... Nxd5 {[%clk 0:02:42.9]} 17. Be4
{[%clk 0:01:41.3]} 17... Nxe3 {[%clk 0:02:43]} 18. Nxe3 {[%clk 0:01:40.6]} 18...
Rb8 {[%clk 0:02:42.3]} 19. b4 {[%clk 0:01:21.2]} 19... Kf8 {[%clk 0:02:42]} 20.
Qxa6 {[%clk 0:01:16.2]} 20... Nf6 {[%clk 0:02:40.5]} 21. Qd3 {[%clk 0:01:10.9]}
21... h4 {[%clk 0:02:30.8]} 22. Nd5 {[%clk 0:01:08.2]} 22... Nxd5 {[%clk
0:02:28]} 23. Qxd5 {[%clk 0:01:06.6]} 23... f6 {[%clk 0:02:23]} 24. b5 {[%clk
0:00:57.1]} 24... Qe8 {[%clk 0:02:22.1]} 25. c4 {[%clk 0:00:57.3]} 25... Qh5
{[%clk 0:02:12.8]} 26. Nc3 {[%clk 0:00:53.6]} 26... Kg7 {[%clk 0:02:07.9]} 27.
Ra7 {[%clk 0:00:49.2]} 27... Rbc8 {[%clk 0:02:05.8]} 28. b6 {[%clk 0:00:31.4]}
28... Rge8 {[%clk 0:02:05.5]} 29. Rxc7 {[%clk 0:00:29.5]} 29... Rxc7 {[%clk
0:02:04.3]} 30. bxc7 {[%clk 0:00:30.8]} 30... g3 {[%clk 0:01:58.6]} 31. h3
{[%clk 0:00:29.9]} 31... Qg5 {[%clk 0:01:55]} 32. Qd3 {[%clk 0:00:26.5]} 32...
Rc8 {[%clk 0:01:52.9]} 33. Nd5 {[%clk 0:00:27.6]} 33... Bf8 {[%clk 0:01:52.9]}
34. Rb1 {[%clk 0:00:26.2]} 34... Kf7 {[%clk 0:01:47.9]} 35. Qe3 {[%clk
0:00:25.6]} 35... Qxe3+ {[%clk 0:01:41.3]} 36. Nxe3 {[%clk 0:00:26.7]} 36...
Rxc7 {[%clk 0:01:42.7]} 37. Bd5+ {[%clk 0:00:26.9]} 37... Kg7 {[%clk 0:01:41.6]}
38. Kf1 {[%clk 0:00:26.7]} 38... Kh6 {[%clk 0:01:42.3]} 39. Ke2 {[%clk
0:00:27.1]} 39... Kg5 {[%clk 0:01:43]} 40. Kf3 {[%clk 0:00:28.3]} 40... Bh6
{[%clk 0:01:38.3]} 41. Rb8 {[%clk 0:00:27.4]} 41... Kh5 {[%clk 0:01:36]} 42. Rg8
{[%clk 0:00:26.4]} 42... Bxe3 {[%clk 0:01:29.4]} 43. Kxe3 {[%clk 0:00:25.9]}
43... Ra7 {[%clk 0:01:29.8]} 44. Bf3+ {[%clk 0:00:24]} 44... Kh6 {[%clk
0:01:29.6]} 45. Rg6+ {[%clk 0:00:25.4]} 45... Kh7 {[%clk 0:01:29.2]} 46. Rxf6
{[%clk 0:00:27]} 46... Ra3+ {[%clk 0:01:29.6]} 47. Ke4 {[%clk 0:00:27.1]} 47...
Rc3 {[%clk 0:01:29.1]} 48. Rxd6 {[%clk 0:00:28.1]} 48... Rxc4+ {[%clk
0:01:29.2]} 49. Kxe5 {[%clk 0:00:29.4]} 49... Rc3 {[%clk 0:01:30.4]} 50. Kf4
{[%clk 0:00:29.9]} 50... Rc4+ {[%clk 0:01:30]} 51. Kg5 {[%clk 0:00:31.2]} 51...
Kg7 {[%clk 0:01:27.6]} 52. Rd7+ {[%clk 0:00:32]} 52... Kf8 {[%clk 0:01:28.8]}
53. f6 {[%clk 0:00:31.3]} 53... Rc8 {[%clk 0:01:23.6]} 54. Kg6 {[%clk
0:00:31.2]} 54... Rb8 {[%clk 0:01:22.8]} 55. Rh7 {[%clk 0:00:31.5]} 1-0

[Event "*** MasterClass Titled Tuesday Blitz"]
[Site "Chess.com"]
[Date "2017.12.12"]
[Round "8"]
[White "A-Fier"]
[Black "gammagramma"]
[Result "1-0"]
[WhiteElo "2643"]
[BlackElo "2472"]
[TimeControl "180+2"]
[EndTime "14:52:12 PST"]
[Termination "A-Fier won by resignation"]

1. d4 {[%clk 0:03:01.9]} 1... Nf6 {[%clk 0:02:55.7]} 2. Bg5 {[%clk 0:03:02.4]}
2... d5 {[%clk 0:02:54]} 3. Nd2 {[%clk 0:03:03.4]} 3... e6 {[%clk 0:02:53.2]} 4.
e4 {[%clk 0:03:01.1]} 4... h6 {[%clk 0:02:53.4]} 5. Bh4 {[%clk 0:03:00.1]} 5...
dxe4 {[%clk 0:02:46.3]} 6. Nxe4 {[%clk 0:02:57.5]} 6... Nbd7 {[%clk 0:02:46.9]}
7. Nxf6+ {[%clk 0:02:54]} 7... Nxf6 {[%clk 0:02:47.5]} 8. Nf3 {[%clk 0:02:55.9]}
8... a6 {[%clk 0:02:42]} 9. Bd3 {[%clk 0:02:56.5]} 9... c5 {[%clk 0:02:40.8]}
10. Qe2 {[%clk 0:02:57.6]} 10... cxd4 {[%clk 0:02:40.8]} 11. O-O-O {[%clk
0:02:58.7]} 11... Bc5 {[%clk 0:02:35.5]} 12. Ne5 {[%clk 0:02:59.5]} 12... g5
{[%clk 0:02:20.6]} 13. Bg3 {[%clk 0:02:59.9]} 13... Nd5 {[%clk 0:02:21.8]} 14.
h4 {[%clk 0:02:57.4]} 14... gxh4 {[%clk 0:02:18.6]} 15. Rxh4 {[%clk 0:02:57.2]}
15... b5 {[%clk 0:02:13.1]} 16. Qh5 {[%clk 0:02:50.9]} 16... Rf8 {[%clk
0:01:36.6]} 17. Re1 {[%clk 0:02:38.8]} 17... Qa5 {[%clk 0:01:33.3]} 18. Kd1
{[%clk 0:02:21.7]} 18... Qxa2 {[%clk 0:01:28.9]} 19. Nf3 {[%clk 0:01:48.6]}
19... Ra7 {[%clk 0:01:22.1]} 20. Nxd4 {[%clk 0:01:46.1]} 20... Bxd4 {[%clk
0:01:18.7]} 21. Rxd4 {[%clk 0:01:46.5]} 21... Qa1+ {[%clk 0:01:13.6]} 22. Ke2
{[%clk 0:01:47.3]} 22... Qxb2 {[%clk 0:01:14.7]} 23. Be5 {[%clk 0:01:31.6]}
23... Re7 {[%clk 0:01:15.6]} 24. Kf1 {[%clk 0:01:31.8]} 24... Qa3 {[%clk
0:01:05.5]} 25. Qxh6 {[%clk 0:01:27.4]} 25... Qc5 {[%clk 0:01:00.9]} 26. Rh4
{[%clk 0:01:28.2]} 26... Rd7 {[%clk 0:00:39.8]} 27. Bd4 {[%clk 0:01:27.4]} 27...
Qe7 {[%clk 0:00:39]} 28. Bg7 {[%clk 0:01:20.1]} 28... Rg8 {[%clk 0:00:37.8]} 29.
Rg4 {[%clk 0:01:09.6]} 29... f5 {[%clk 0:00:33.7]} 30. Rg6 {[%clk 0:00:56.3]}
30... Rxg7 {[%clk 0:00:30.1]} 31. Rgxe6 {[%clk 0:00:54.1]} 31... Kd8 {[%clk
0:00:28.5]} 32. Rxe7 {[%clk 0:00:52]} 32... Rgxe7 {[%clk 0:00:27.3]} 33. Rxe7
{[%clk 0:00:52]} 33... Nxe7 {[%clk 0:00:27.1]} 34. Qb6+ {[%clk 0:00:52.7]} 34...
Rc7 {[%clk 0:00:26.4]} 35. Kg1 {[%clk 0:00:47]} 35... Bb7 {[%clk 0:00:26.9]} 36.
Qf6 {[%clk 0:00:45.7]} 36... b4 {[%clk 0:00:21.3]} 37. Bxf5 {[%clk 0:00:45.5]}
37... Bc6 {[%clk 0:00:18.7]} 38. Qd4+ {[%clk 0:00:44.8]} 38... Bd7 {[%clk
0:00:16.6]} 39. Bxd7 {[%clk 0:00:44.3]} 39... Rxd7 {[%clk 0:00:18]} 40. Qxb4
{[%clk 0:00:45.8]} 40... Kc8 {[%clk 0:00:14.7]} 41. Qb6 {[%clk 0:00:44.6]} 41...
Rd1+ {[%clk 0:00:15.3]} 42. Kh2 {[%clk 0:00:45.3]} 42... Ra1 {[%clk 0:00:16.8]}
43. Qc5+ {[%clk 0:00:43.5]} 43... Kd8 {[%clk 0:00:18.2]} 44. Qd4+ {[%clk
0:00:44.7]} 44... Ke8 {[%clk 0:00:19.8]} 1-0

[Event "*** MasterClass Titled Tuesday Blitz"]
[Site "Chess.com"]
[Date "2017.12.12"]
[Round "8"]
[White "TST2014"]
[Black "goldenspine"]
[Result "1-0"]
[WhiteElo "2271"]
[BlackElo "2282"]
[TimeControl "180+2"]
[EndTime "14:52:13 PST"]
[Termination "TST2014 won by checkmate"]

1. d4 {[%clk 0:03:01.9]} 1... Nf6 {[%clk 0:03:00.8]} 2. c4 {[%clk 0:03:01.3]}
2... g6 {[%clk 0:03:02.3]} 3. Nc3 {[%clk 0:03:01.2]} 3... d5 {[%clk 0:03:03.9]}
4. Nf3 {[%clk 0:03:01.2]} 4... Bg7 {[%clk 0:03:04.7]} 5. Bg5 {[%clk 0:03:02.5]}
5... Ne4 {[%clk 0:03:05.3]} 6. Bh4 {[%clk 0:03:02.7]} 6... Nxc3 {[%clk
0:03:04.6]} 7. bxc3 {[%clk 0:03:04.1]} 7... c5 {[%clk 0:03:05.2]} 8. e3 {[%clk
0:03:01.6]} 8... O-O {[%clk 0:03:05]} 9. cxd5 {[%clk 0:03:02.2]} 9... cxd4
{[%clk 0:02:55]} 10. cxd4 {[%clk 0:02:57]} 10... Re8 {[%clk 0:02:38]} 11. e4
{[%clk 0:02:50]} 11... Qa5+ {[%clk 0:02:33.3]} 12. Qd2 {[%clk 0:02:49.7]} 12...
Qa4 {[%clk 0:02:29.6]} 13. Rb1 {[%clk 0:02:47]} 13... a6 {[%clk 0:02:16.2]} 14.
Be2 {[%clk 0:02:30]} 14... f5 {[%clk 0:02:09]} 15. e5 {[%clk 0:02:25.8]} 15...
e6 {[%clk 0:02:05.4]} 16. d6 {[%clk 0:02:16.2]} 16... Nc6 {[%clk 0:01:53.8]} 17.
O-O {[%clk 0:02:15.7]} 17... h6 {[%clk 0:01:53.5]} 18. Bf6 {[%clk 0:01:55.3]}
18... g5 {[%clk 0:01:32.6]} 19. Nxg5 {[%clk 0:01:51.8]} 19... Qxd4 {[%clk
0:01:19.7]} 20. Qxd4 {[%clk 0:01:43.9]} 20... Nxd4 {[%clk 0:01:21.6]} 21. Bh5
{[%clk 0:01:43.9]} 21... Rf8 {[%clk 0:00:54.4]} 22. Bxg7 {[%clk 0:01:40.3]}
22... Kxg7 {[%clk 0:00:55.7]} 23. Rfd1 {[%clk 0:01:40.5]} 23... Nc6 {[%clk
0:00:49.5]} 24. Nf3 {[%clk 0:01:32.5]} 24... Nb8 {[%clk 0:00:37.5]} 25. Rbc1
{[%clk 0:01:25.7]} 25... Nd7 {[%clk 0:00:28.3]} 26. Rc7 {[%clk 0:01:24.9]} 26...
Rd8 {[%clk 0:00:29]} 27. Nd4 {[%clk 0:01:23.7]} 27... Kh7 {[%clk 0:00:20]} 28.
Nxe6 {[%clk 0:01:23.1]} 28... Rg8 {[%clk 0:00:21]} 29. Bf7 {[%clk 0:01:15.4]}
29... Rg4 {[%clk 0:00:18]} 30. h3 {[%clk 0:01:11.7]} 30... Re4 {[%clk
0:00:17.4]} 31. f4 {[%clk 0:01:10.4]} 31... Nb6 {[%clk 0:00:12.5]} 32. Bh5+
{[%clk 0:01:03]} 32... Kh8 {[%clk 0:00:13]} 33. d7 {[%clk 0:00:48.2]} 33... Bxd7
{[%clk 0:00:12.1]} 34. Rdxd7 {[%clk 0:00:49.7]} 34... Nxd7 {[%clk 0:00:13.1]}
35. Rxd7 {[%clk 0:00:51.3]} 35... Rc8 {[%clk 0:00:14.5]} 36. Bg6 {[%clk
0:00:48.3]} 36... Re1+ {[%clk 0:00:10.6]} 37. Kh2 {[%clk 0:00:48.3]} 37... Re2
{[%clk 0:00:12.1]} 38. Bxf5 {[%clk 0:00:48]} 38... Rxa2 {[%clk 0:00:12.5]} 39.
Rh7+ {[%clk 0:00:47.1]} 39... Kg8 {[%clk 0:00:13.5]} 40. Rxb7 {[%clk 0:00:43.2]}
40... a5 {[%clk 0:00:14]} 41. Bh7+ {[%clk 0:00:42.8]} 41... Kh8 {[%clk
0:00:14.4]} 42. f5 {[%clk 0:00:41.9]} 42... Rcc2 {[%clk 0:00:14.7]} 43. Nf4
{[%clk 0:00:41.6]} 43... Rf2 {[%clk 0:00:15.1]} 44. Ng6# {[%clk 0:00:42.1]} 1-0

[Event "*** MasterClass Titled Tuesday Blitz"]
[Site "Chess.com"]
[Date "2017.12.12"]
[Round "8"]
[White "djano"]
[Black "dolynachess"]
[Result "1/2-1/2"]
[WhiteElo "2351"]
[BlackElo "2286"]
[TimeControl "180+2"]
[EndTime "14:52:25 PST"]
[Termination "Game drawn by stalemate"]

1. Nc3 {[%clk 0:03:01.9]} 1... e6 {[%clk 0:02:55]} 2. Nf3 {[%clk 0:03:01.5]}
2... d5 {[%clk 0:02:54.6]} 3. d4 {[%clk 0:02:59.4]} 3... Nf6 {[%clk 0:02:46.7]}
4. Bf4 {[%clk 0:02:58.9]} 4... a6 {[%clk 0:02:44]} 5. e3 {[%clk 0:02:57.7]} 5...
c5 {[%clk 0:02:44.4]} 6. dxc5 {[%clk 0:02:58]} 6... Bxc5 {[%clk 0:02:44.4]} 7.
Bd3 {[%clk 0:02:59.1]} 7... Nc6 {[%clk 0:02:42.5]} 8. a3 {[%clk 0:02:58.9]} 8...
Bd6 {[%clk 0:02:21.9]} 9. Bg3 {[%clk 0:02:45]} 9... e5 {[%clk 0:02:09]} 10. e4
{[%clk 0:02:43.8]} 10... d4 {[%clk 0:02:05.2]} 11. Nd5 {[%clk 0:02:44.4]} 11...
Nxd5 {[%clk 0:02:03.1]} 12. exd5 {[%clk 0:02:46.3]} 12... Qa5+ {[%clk
0:02:04.1]} 13. b4 {[%clk 0:02:47.8]} 13... Qxd5 {[%clk 0:02:05]} 14. Qe2 {[%clk
0:02:47.9]} 14... f5 {[%clk 0:00:47.2]} 15. Bc4 {[%clk 0:02:47.8]} 15... Qe4
{[%clk 0:00:48.2]} 16. Qxe4 {[%clk 0:02:48.9]} 16... fxe4 {[%clk 0:00:49.5]} 17.
Ng5 {[%clk 0:02:50.8]} 17... Bf5 {[%clk 0:00:48.7]} 18. Nf7 {[%clk 0:02:51.8]}
18... Ke7 {[%clk 0:00:49]} 19. Nxh8 {[%clk 0:02:41.3]} 19... Rxh8 {[%clk
0:00:50.9]} 20. O-O {[%clk 0:02:41]} 20... Rc8 {[%clk 0:00:45.5]} 21. Bd5 {[%clk
0:02:39]} 21... Rc7 {[%clk 0:00:43.4]} 22. Rfe1 {[%clk 0:02:39.7]} 22... Nd8
{[%clk 0:00:11.1]} 23. Rac1 {[%clk 0:02:40.6]} 23... Rc3 {[%clk 0:00:08.1]} 24.
a4 {[%clk 0:02:41.7]} 24... Bxb4 {[%clk 0:00:05.8]} 25. Bxe5 {[%clk 0:02:42.4]}
25... Rc5 {[%clk 0:00:04.8]} 26. c3 {[%clk 0:02:30]} 26... Bxc3 {[%clk
0:00:05.3]} 27. Red1 {[%clk 0:01:40.4]} 27... Rxd5 {[%clk 0:00:04.4]} 28. Rxc3
{[%clk 0:01:42]} 28... Rxe5 {[%clk 0:00:05.6]} 29. Rc7+ {[%clk 0:01:42.8]} 29...
Kf6 {[%clk 0:00:04.5]} 30. Rxd4 {[%clk 0:01:42.2]} 30... Ne6 {[%clk 0:00:04.3]}
31. Rd6 {[%clk 0:01:43.2]} 31... Ra5 {[%clk 0:00:04]} 32. Rxb7 {[%clk
0:01:41.5]} 32... Rxa4 {[%clk 0:00:05.4]} 33. h3 {[%clk 0:01:43.1]} 33... h5
{[%clk 0:00:06.6]} 34. Rdd7 {[%clk 0:01:43.4]} 34... h4 {[%clk 0:00:07.3]} 35.
Rf7+ {[%clk 0:01:43.9]} 35... Ke5 {[%clk 0:00:08.7]} 36. Rbe7 {[%clk 0:01:42.9]}
36... g5 {[%clk 0:00:09.7]} 37. Kh2 {[%clk 0:01:28.8]} 37... Ra2 {[%clk
0:00:09.7]} 38. Kg1 {[%clk 0:01:29.4]} 38... Ra1+ {[%clk 0:00:10.8]} 39. Kh2
{[%clk 0:01:30.8]} 39... Rf1 {[%clk 0:00:12]} 40. Ra7 {[%clk 0:01:30.3]} 40...
Rxf2 {[%clk 0:00:11.9]} 41. Rxa6 {[%clk 0:01:31.5]} 41... e3 {[%clk 0:00:07]}
42. Ra5+ {[%clk 0:01:32.7]} 42... Kd6 {[%clk 0:00:04.2]} 43. Ra3 {[%clk
0:01:26]} 43... e2 {[%clk 0:00:03.7]} 44. Re3 {[%clk 0:01:27.1]} 44... Nf4
{[%clk 0:00:04]} 45. Rxf5 {[%clk 0:01:25.5]} 45... Rxg2+ {[%clk 0:00:05]} 46.
Kh1 {[%clk 0:01:26.8]} 46... Rf2 {[%clk 0:00:06.5]} 47. Rxe2 {[%clk 0:01:14.6]}
47... Rxe2 {[%clk 0:00:06.2]} 48. Rxg5 {[%clk 0:01:15.9]} 48... Nxh3 {[%clk
0:00:07.2]} 49. Rd5+ {[%clk 0:01:16.8]} 49... Kxd5 {[%clk 0:00:07.1]} 1/2-1/2